bitfinex/quotes_BTCUSD_20250212
["timestamp","ask_amount","ask_price","bid_price","bid_amount"]
[1739367649146,2.45403875,94480.0,94479.0,0.00647077]
[1739367649624,2.46103875,94480.0,94479.0,0.00747077]
[1739367650072,2.48443125,94480.0,94479.0,8.193e-05]
[1739367650277,2.49143125,94480.0,94479.0,0.00108193]
[1739367651312,2.43896653,94480.0,94479.0,0.00108193]
[1739367651518,2.15699803,94480.0,94479.0,0.00108193]
[1739367651741,2.15699803,94480.0,94479.0,0.00118853]
[1739367651958,1.67951093,94480.0,94479.0,0.00118853]
[1739367652159,1.48572793,94480.0,94479.0,0.007788]
[1739367652393,1.65307943,94480.0,94479.0,0.007788]
[1739367652601,1.64607943,94480.0,94479.0,0.006788]
[1739367653008,0.15,94479.0,94478.0,3.80835828]
[1739367653214,1.07383365,94479.0,94478.0,3.80835828]
[1739367653426,1.07383365,94479.0,94478.0,3.8129175]
[1739367653889,1.55134035,94479.0,94478.0,3.8129175]
[1739367654293,1.55834035,94479.0,94478.0,3.81416942]
[1739367654497,2.59576748,94479.0,94478.0,3.79300042]
[1739367654822,2.62613739,94479.0,94478.0,3.72949342]
[1739367655029,3.22195617,94479.0,94478.0,3.53022442]
[1739367655253,3.22195617,94479.0,94478.0,3.30008577]
[1739367655453,2.36365443,94479.0,94478.0,3.20453694]
[1739367655741,2.29812252,94479.0,94478.0,3.07549803]
[1739367655873,2.30512252,94479.0,94478.0,3.05432903]
[1739367656079,2.29812252,94479.0,94478.0,3.05432903]
[1739367656485,2.33043733,94479.0,94478.0,2.96965303]
[1739367656695,2.35245005,94479.0,94478.0,0.74329325]
[1739367656900,2.39032252,94479.0,94478.0,0.28355764]
[1739367657119,2.39732252,94479.0,94478.0,0.28391266]
[1739367657389,2.39032252,94479.0,94478.0,0.27825969]
[1739367657598,2.39032252,94479.0,94478.0,0.25708569]
[1739367657806,2.39732252,94479.0,94478.0,0.21473769]
[1739367658014,2.39732252,94479.0,94478.0,0.04438769]
[1739367658222,0.30878,94470.0,94469.0,6.17585484]
[1739367658428,3.52480791,94470.0,94469.0,5.82089322]
[1739367658639,3.8668818,94470.0,94469.0,5.00877841]
[1739367658870,3.8668818,94470.0,94469.0,4.49771844]
[1739367659016,0.6812238,94470.0,94469.0,4.07324933]
[1739367659218,3.94223589,94470.0,94469.0,3.22431111]
[1739367659456,4.90115189,94470.0,94469.0,2.79984801]
[1739367659671,4.90115189,94470.0,94469.0,2.3753919]
[1739367659988,4.42219189,94470.0,94469.0,2.3753919]
[1739367660193,3.19217888,94470.0,94469.0,2.3753919]
[1739367660545,3.77595348,94470.0,94469.0,2.3753919]
[1739367660745,3.78295348,94470.0,94469.0,2.35933282]
[1739367660946,0.77345348,94470.0,94469.0,1.8501987]
[1739367661143,0.77345348,94470.0,94469.0,1.42574858]
[1739367661481,5.20383409,94470.0,94469.0,1.00130546]
[1739367661686,4.62005949,94470.0,94469.0,0.95896346]
[1739367661891,4.57291149,94470.0,94469.0,0.95385154]
[1739367662062,1.93917549,94470.0,94469.0,0.95385154]
[1739367662585,1.90909288,94470.0,94469.0,0.9549966]
[1739367662827,1.55102388,94470.0,94469.0,0.9549966]
[1739367663028,0.44947988,94470.0,94469.0,0.7869966]
[1739367663234,0.92702438,94470.0,94469.0,0.7869966]
[1739367663383,0.92002438,94470.0,94469.0,0.7869966]
[1739367663585,1.40099698,94470.0,94469.0,0.25668948]
[1739367663801,0.308795,94461.0,94460.0,6.48346052]
[1739367664008,3.878244,94461.0,94460.0,6.43073211]
[1739367664180,4.4112874,94461.0,94460.0,6.43073211]
[1739367664384,3.9445924,94461.0,94460.0,6.43073211]
[1739367664587,3.8602334,94461.0,94460.0,6.38838611]
[1739367664788,3.87233268,94461.0,94460.0,6.38838611]
[1739367664971,2.92049028,94461.0,94460.0,6.38838611]
[1739367665175,2.00044086,94461.0,94460.0,6.34809686]
[1739367665385,1.17633741,94461.0,94460.0,6.34809686]
[1739367665606,1.17633741,94461.0,94460.0,6.2104864]
[1739367665806,1.80392591,94461.0,94460.0,6.2104864]
[1739367666184,1.81719468,94461.0,94460.0,6.16271883]
[1739367666385,1.82660964,94461.0,94460.0,6.16271883]
[1739367666614,1.83360964,94461.0,94460.0,6.16271883]
[1739367667017,1.82660964,94461.0,94460.0,6.16262834]
[1739367667248,1.83360964,94461.0,94460.0,6.16262834]
[1739367667621,2.41744434,94461.0,94460.0,6.06998215]
[1739367667834,2.41744434,94461.0,94460.0,6.04880915]
[1739367668034,2.41744434,94461.0,94460.0,5.92080915]
[1739367668372,2.40417557,94461.0,94460.0,5.82127549]
[1739367668678,2.39717557,94461.0,94460.0,5.75775649]
[1739367668889,1.81334087,94461.0,94460.0,5.75775649]
[1739367669101,1.82034087,94461.0,94460.0,5.75775649]
[1739367669304,1.81334087,94461.0,94460.0,5.75775649]
[1739367669510,1.67034087,94461.0,94460.0,5.75775649]
[1739367669720,1.67033947,94461.0,94460.0,5.7386455]
[1739367669923,1.82033947,94461.0,94460.0,5.7386455]
[1739367670321,2.38479481,94461.0,94460.0,5.7386455]
[1739367670681,2.38479481,94461.0,94460.0,5.6962995]
[1739367670682,2.37779481,94461.0,94460.0,5.6962995]
[1739367670862,2.37779481,94461.0,94460.0,5.6327805]
[1739367671472,2.40808879,94461.0,94460.0,5.6327805]
[1739367671899,2.39598951,94461.0,94460.0,5.5904345]
[1739367672150,2.39598951,94461.0,94460.0,5.5480885]
[1739367672297,2.40298951,94461.0,94460.0,5.5269155]
[1739367672511,2.39598951,94461.0,94460.0,5.5269155]
[1739367672702,1.81211921,94461.0,94460.0,5.5269155]
[1739367673002,2.40294911,94461.0,94460.0,5.2930505]
[1739367673205,2.36583413,94461.0,94460.0,5.2930505]
[1739367673406,2.33554015,94461.0,94460.0,5.2930505]
[1739367673606,2.33554015,94461.0,94460.0,5.1871855]
[1739367673607,5.81520059,94461.0,94460.0,5.1871855]
[1739367673806,5.11012759,94461.0,94460.0,5.1871855]
[1739367674038,4.72503659,94461.0,94460.0,5.1871855]
[1739367674278,4.75042333,94461.0,94460.0,5.1871855]
[1739367674494,5.89707505,94461.0,94460.0,5.1024935]
[1739367674707,5.10595431,94461.0,94460.0,4.10647598]
[1739367674926,1.47139031,94461.0,94460.0,3.68194389]
[1739367675146,5.87168831,94461.0,94460.0,3.68194389]
[1739367675372,5.88172279,94461.0,94460.0,1.55942244]
[1739367675592,5.87472279,94461.0,94460.0,1.53824944]
[1739367675805,5.25652547,94461.0,94460.0,1.53824944]
[1739367676014,5.14872147,94461.0,94460.0,1.53824944]
[1739367676182,1.53496552,94461.0,94460.0,1.53824944]
[1739367676352,1.54196552,94461.0,94460.0,1.52153855]
[1739367676539,1.54196552,94461.0,94460.0,1.42572619]
[1739367676738,1.52317504,94461.0,94460.0,1.42572619]
[1739367676946,1.52317504,94461.0,94460.0,1.22579679]
[1739367677251,1.51617504,94461.0,94460.0,1.08904592]
[1739367677451,1.47996203,94461.0,94460.0,1.08904592]
[1739367677675,1.47996203,94461.0,94460.0,0.44825092]
[1739367678075,1.47049616,94461.0,94460.0,0.32025092]
[1739367678513,0.2022253,94460.0,94451.0,6.28872762]
[1739367678726,0.3384,94452.0,94451.0,5.79782077]
[1739367678928,4.74211018,94452.0,94451.0,5.37328868]
[1739367679139,4.74211018,94452.0,94451.0,4.94875659]
[1739367679292,4.74211018,94452.0,94451.0,4.5242245]
[1739367679496,4.74211018,94452.0,94451.0,4.4606995]
[1739367679725,4.74211018,94452.0,94451.0,3.98637188]
[1739367679929,1.44736,94452.0,94451.0,3.037343]
[1739367680133,1.42011018,94452.0,94451.0,1.73577617]
[1739367680500,1.50399963,94452.0,94451.0,1.67430817]
[1739367680704,1.49699963,94452.0,94451.0,1.62575074]
[1739367681728,1.49699963,94452.0,94451.0,1.57230951]
[1739367681942,1.48372492,94452.0,94451.0,1.52451766]
[1739367682145,1.49072492,94452.0,94451.0,1.52451766]
[1739367682357,1.48372492,94452.0,94451.0,1.48216766]
[1739367682769,1.48123903,94452.0,94451.0,1.39746766]
[1739367682981,1.47423903,94452.0,94451.0,1.39746766]
[1739367683188,1.47423903,94452.0,94451.0,1.26946766]
[1739367683402,1.48123903,94452.0,94451.0,1.26946766]
[1739367683605,1.47423903,94452.0,94451.0,1.26946766]
[1739367683865,1.48123903,94452.0,94451.0,1.26946766]
[1739367685100,1.47423903,94452.0,94451.0,1.26946766]
[1739367685309,1.47423903,94452.0,94451.0,1.09527609]
[1739367685537,1.48123903,94452.0,94451.0,1.09527609]
[1739367685736,1.47423903,94452.0,94451.0,1.09527609]
[1739367686152,1.45098135,94452.0,94451.0,0.99137078]
[1739367686361,1.44398135,94452.0,94451.0,0.99137078]
[1739367686577,1.47123117,94452.0,94451.0,0.93163059]
[1739367686787,1.45098135,94452.0,94442.0,6.33558513]
[1739367686999,1.45098135,94452.0,94442.0,5.14034512]
[1739367687000,0.02857384,94451.0,94442.0,5.14034512]
[1739367687206,0.15,94450.0,94442.0,5.14034512]
[1739367687418,0.03160709,94449.0,94442.0,3.63584664]
[1739367687671,0.0926,94446.0,94442.0,2.85069333]
[1739367687877,0.2426,94444.0,94442.0,2.72712515]
[1739367688087,0.2426,94442.0,94433.0,5.53939242]
[1739367688295,0.1816073,94441.0,94433.0,4.29631042]
[1739367688500,0.27288305,94440.0,94433.0,3.54069212]
[1739367688704,0.0926,94438.0,94433.0,2.6165467]
[1739367688905,0.65,94434.0,94433.0,2.59368847]
[1739367689122,0.83912305,94434.0,94433.0,1.29847869]
[1739367689327,0.02319327,94427.0,94425.0,5.57697389]
[1739367689557,0.8219999,94426.0,94425.0,4.08042723]
[1739367689760,1.33756889,94426.0,94425.0,3.6645486]
[1739367689974,1.33367486,94426.0,94425.0,3.15141694]
[1739367690183,1.57860098,94426.0,94425.0,2.51167743]
[1739367690393,1.46958945,94426.0,94425.0,1.24597529]
[1739367690596,1.58138945,94426.0,94425.0,0.43694205]
[1739367690809,0.308869,94417.0,94416.0,5.50092594]
[1739367691008,2.76035411,94417.0,94416.0,5.27856846]
[1739367691212,3.08812482,94417.0,94416.0,4.85384644]
[1739367691629,7.17190582,94417.0,94416.0,4.74793144]
[1739367692037,3.30211245,94417.0,94416.0,4.64176694]
[1739367692238,3.28221214,94417.0,94416.0,4.64176694]
[1739367692415,3.28728371,94417.0,94416.0,4.64176694]
[1739367692743,7.48243928,94417.0,94416.0,4.64176694]
[1739367693094,7.48943928,94417.0,94416.0,4.504051]
[1739367693297,7.51769563,94417.0,94416.0,4.48001886]
[1739367693618,3.33914363,94417.0,94416.0,4.27901886]
[1739367693919,3.35019066,94417.0,94416.0,4.25613635]
[1739367694126,3.35019066,94417.0,94416.0,4.05620695]
[1739367694281,3.33139106,94417.0,94416.0,4.05517058]
[1739367694487,3.33139106,94417.0,94416.0,4.05415061]
[1739367694885,3.32439106,94417.0,94416.0,3.94024883]
[1739367695293,3.33139106,94417.0,94416.0,3.94024883]
[1739367695496,3.77770367,94417.0,94416.0,3.94016883]
[1739367695716,3.77070367,94417.0,94416.0,3.94016883]
[1739367695921,3.77070367,94417.0,94416.0,2.24929083]
[1739367696079,3.77770367,94417.0,94416.0,2.11962511]
[1739367696274,3.77770367,94417.0,94416.0,1.43456848]
[1739367696701,3.77770367,94417.0,94416.0,0.91589548]
[1739367696913,4.32022467,94417.0,94416.0,0.35928448]
[1739367697122,0.15,94412.0,94407.0,5.97486704]
[1739367697365,0.2618,94408.0,94407.0,5.78719304]
[1739367697573,1.59071632,94408.0,94407.0,5.78719304]
[1739367697725,1.62099937,94408.0,94407.0,5.78719304]
[1739367698083,1.73815776,94408.0,94407.0,5.78719304]
[1739367698287,0.42848176,94408.0,94407.0,5.65919304]
[1739367698446,0.42861522,94408.0,94407.0,5.65919304]
[1739367698771,0.4962005,94408.0,94407.0,5.17922556]
[1739367698967,0.4962005,94408.0,94407.0,4.35605656]
[1739367698968,0.9397405,94408.0,94407.0,4.35605656]
[1739367699217,1.05228082,94408.0,94407.0,4.13607471]
[1739367699438,1.05228082,94408.0,94407.0,4.09552076]
[1739367699598,1.05228082,94408.0,94407.0,3.61321376]
[1739367699773,1.05228082,94408.0,94407.0,3.57986976]
[1739367699979,1.05228082,94408.0,94407.0,3.32381645]
[1739367700181,1.05228082,94408.0,94407.0,3.32407887]
[1739367700389,1.05228082,94408.0,94407.0,3.21777887]
[1739367700614,1.0026749,94408.0,94407.0,3.21777887]
[1739367700797,1.0096749,94408.0,94407.0,3.21777887]
[1739367701029,0.81673272,94408.0,94407.0,2.71820636]
[1739367701227,0.7638889,94408.0,94407.0,2.34337075]
[1739367701434,0.80696086,94408.0,94407.0,2.34337075]
[1739367701594,0.79996086,94408.0,94407.0,1.95541375]
[1739367701789,0.99216086,94408.0,94407.0,1.95541375]
[1739367701994,1.34123475,94408.0,94407.0,1.95541375]
[1739367702193,1.34123475,94408.0,94407.0,1.84043866]
[1739367702398,1.29816279,94408.0,94407.0,1.51049059]
[1739367702599,1.19307597,94408.0,94407.0,1.51049059]
[1739367702814,1.19307597,94408.0,94407.0,1.40949168]
[1739367703017,4.50701097,94408.0,94407.0,1.40949168]
[1739367703266,0.94977597,94408.0,94407.0,1.40959828]
[1739367703462,0.94977597,94408.0,94407.0,1.40343328]
[1739367703667,0.94277597,94408.0,94407.0,1.40343328]
[1739367703991,1.09977597,94408.0,94407.0,1.40343328]
[1739367704209,1.09277597,94408.0,94407.0,1.40343328]
[1739367704330,1.09277597,94408.0,94407.0,1.21565483]
[1739367704331,0.83097597,94408.0,94407.0,1.21565483]
[1739367704643,0.83797597,94408.0,94407.0,0.98044702]
[1739367704852,0.83097597,94408.0,94407.0,0.98044702]
[1739367705079,4.01665697,94408.0,94407.0,0.72559601]
[1739367705238,3.35895197,94408.0,94407.0,0.6793427]
[1739367705440,2.31410197,94408.0,94407.0,0.5095517]
[1739367705660,2.31410197,94408.0,94407.0,0.44672808]
[1739367705836,2.31410197,94408.0,94407.0,0.0637437]
[1739367706038,2.31410197,94408.0,94400.0,0.0042026]
[1739367706249,3.68344551,94407.0,94400.0,0.0042026]
[1739367706446,4.57099048,94407.0,94406.0,0.01740662]
[1739367707065,4.47681205,94407.0,94406.0,0.06031793]
[1739367707241,3.56289205,94407.0,94406.0,0.05772546]
[1739367707442,3.40189205,94407.0,94406.0,0.05633251]
[1739367707644,1.53018492,94407.0,94406.0,0.05493777]
[1739367707806,1.51921592,94407.0,94406.0,0.05493777]
[1739367708007,1.30530192,94407.0,94398.0,5.57961961]
[1739367708222,0.02060736,94406.0,94398.0,5.57961961]
[1739367708428,0.91126505,94406.0,94398.0,5.57950445]
[1739367708633,0.70900205,94405.0,94398.0,5.57950445]
[1739367708841,0.15,94403.0,94399.0,0.0753]
[1739367709033,0.0206073,94402.0,94399.0,0.0753]
[1739367709242,0.03033795,94401.0,94399.0,0.0753]
[1739367709578,0.46269988,94406.0,94399.0,0.0753]
[1739367709579,0.41493783,94406.0,94399.0,0.0753]
[1739367709775,0.137227,94405.0,94399.0,0.0753]
[1739367709985,0.15,94403.0,94399.0,0.0753]
[1739367710145,0.477908,94405.0,94399.0,0.0753]
[1739367710342,0.00013346,94408.0,94399.0,0.0753]
[1739367710555,0.001056,94416.0,94399.0,0.0753]
[1739367710752,0.80836479,94415.0,94399.0,0.07574553]
[1739367710964,0.007,94407.0,94399.0,0.07574553]
[1739367711167,0.446349,94406.0,94400.0,0.049]
[1739367711379,0.0310105,94405.0,94400.0,0.049]
[1739367711574,0.0299545,94404.0,94400.0,0.049]
[1739367711861,0.0310105,94404.0,94400.0,0.049]
[1739367712081,0.0299545,94403.0,94400.0,0.049]
[1739367712232,0.47789,94406.0,94400.0,0.049]
[1739367712397,0.031779,94401.0,94400.0,0.049]
[1739367713034,0.031779,94399.0,94398.0,5.57624998]
[1739367713397,0.5097339,94399.0,94398.0,5.57624998]
[1739367713511,0.00044585,94403.0,94398.0,5.57624998]
[1739367713711,0.031779,94399.0,94398.0,5.57624998]
[1739367713962,0.031778,94403.0,94398.0,5.57624998]
[1739367714167,0.15,94415.0,94398.0,5.57624998]
[1739367714397,0.15,94415.0,94399.0,0.0016073]
[1739367714601,0.15,94415.0,94399.0,0.00709835]
[1739367714792,0.042367,94413.0,94399.0,0.00709835]
[1739367715113,0.042368,94409.0,94398.0,5.57638344]
[1739367715325,0.031778,94405.0,94399.0,0.0001066]
[1739367715529,0.00022387,94408.0,94399.0,0.0001066]
[1739367715697,0.031778,94405.0,94399.0,0.0001066]
[1739367715912,0.00022387,94408.0,94399.0,0.0001066]
[1739367716228,0.15,94412.0,94401.0,0.0269]
[1739367716389,0.03199687,94417.0,94400.0,0.00105908]
[1739367716590,0.031777,94407.0,94399.0,0.0001066]
[1739367717018,0.00022387,94417.0,94399.0,0.0001066]
[1739367717218,0.042366,94414.0,94399.0,0.0001066]
[1739367717415,0.031777,94407.0,94399.0,0.0011066]
[1739367717594,0.00022387,94417.0,94399.0,0.0001066]
[1739367717949,0.031778,94405.0,94399.0,0.0011066]
[1739367718153,0.021184,94410.0,94398.0,5.44949004]
[1739367718360,0.015889,94399.0,94398.0,5.44949004]
[1739367718675,0.015889,94401.0,94398.0,5.44949004]
[1739367718926,0.00022387,94417.0,94398.0,5.44949004]
[1739367718927,0.015889,94400.0,94398.0,5.44949004]
[1739367719139,0.00949744,94400.0,94399.0,0.001]
[1739367719319,0.015889,94402.0,94399.0,0.001]
[1739367719547,0.00022387,94417.0,94399.0,0.001]
[1739367719731,0.021182,94416.0,94400.0,0.0010592]
[1739367720055,0.015887,94415.0,94400.0,0.0010592]
[1739367720376,0.01611087,94417.0,94400.0,0.0010592]
[1739367720555,0.021179,94431.0,94400.0,0.00096432]
[1739367720757,0.015885,94424.0,94399.0,0.0826431]
[1739367720981,0.09058026,94435.0,94400.0,0.00105895]
[1739367721363,0.002,94415.0,94400.0,0.001]
[1739367721568,0.002,94415.0,94401.0,0.0181]
[1739367721778,0.015888,94409.0,94401.0,0.0181]
[1739367721995,0.015887,94414.0,94401.0,0.0181]
[1739367722196,0.002,94415.0,94401.0,0.01906687]
[1739367722404,0.002,94424.0,94401.0,0.00105908]
[1739367722623,0.002,94424.0,94401.0,0.10356273]
[1739367722842,0.002,94424.0,94401.0,0.00105908]
[1739367723080,0.015886,94419.0,94398.0,5.32249004]
[1739367723313,0.00115088,94422.0,94398.0,5.32249004]
[1739367723537,0.00115088,94433.0,94399.0,0.08570221]
[1739367723766,0.015886,94421.0,94399.0,0.08570221]
[1739367723974,0.007,94415.0,94401.0,0.001]
[1739367724204,0.007,94415.0,94399.0,0.08570221]
[1739367724205,0.015884,94433.0,94402.0,0.00095988]
[1739367724407,0.09058026,94434.0,94402.0,0.00095988]
[1739367724612,0.007,94422.0,94403.0,0.00105893]
[1739367724825,0.007,94422.0,94398.0,5.32349004]
[1739367724826,0.00124994,94421.0,94398.0,5.32349004]
[1739367725034,0.015888,94410.0,94399.0,0.08570217]
[1739367725245,0.007,94415.0,94401.0,0.001]
[1739367725487,0.007,94415.0,94402.0,0.00105908]
[1739367725691,0.1118,94482.0,94401.0,0.001]
[1739367725912,0.021173,94459.0,94402.0,0.00105895]
[1739367726114,2.37414414,94458.0,94403.0,0.0846431]
[1739367726327,0.021174,94455.0,94413.0,0.0846431]
[1739367726540,0.015886,94419.0,94413.0,0.0846431]
[1739367726759,0.015886,94421.0,94413.0,0.0846431]
[1739367727009,0.015884,94429.0,94414.0,0.00105902]
[1739367727245,0.37450034,94452.0,94403.0,0.0846431]
[1739367727458,0.015888,94408.0,94403.0,0.0846431]
[1739367727675,0.004,94422.0,94403.0,0.0846431]
[1739367727895,0.021181,94420.0,94403.0,0.0846431]
[1739367728111,0.015888,94406.0,94398.0,5.30519227]
[1739367728318,0.015889,94399.0,94398.0,5.30519227]
[1739367728522,0.015889,94399.0,94398.0,5.30529887]
[1739367728727,0.4938207,94399.0,94398.0,5.30529887]
[1739367728935,0.6438207,94399.0,94398.0,5.30529887]
[1739367729591,0.165889,94399.0,94398.0,5.30529887]
[1739367730220,0.6437959,94399.0,94398.0,5.30519648]
[1739367730429,0.8057119,94399.0,94398.0,5.30519648]
[1739367730628,1.3899367,94399.0,94398.0,5.28661234]
[1739367730849,0.8057119,94399.0,94398.0,5.28661234]
[1739367731051,0.8097119,94399.0,94398.0,5.28661234]
[1739367731556,0.8057119,94399.0,94398.0,5.28661234]
[1739367731766,0.8097119,94399.0,94398.0,5.28661234]
[1739367731989,1.3939343,94399.0,94398.0,5.28661234]
[1739367732282,1.5493275,94399.0,94398.0,5.28661234]
[1739367732594,1.5493275,94399.0,94398.0,5.24423834]
[1739367732773,1.5493275,94399.0,94398.0,5.22305134]
[1739367733011,1.5453275,94399.0,94398.0,5.00978884]
[1739367733424,1.5493275,94399.0,94398.0,4.98860184]
[1739367733631,1.5493275,94399.0,94398.0,4.94622784]
[1739367733632,1.5453275,94399.0,94398.0,4.94622784]
[1739367733804,1.5453275,94399.0,94398.0,4.90385384]
[1739367734005,1.5493275,94399.0,94398.0,4.90385384]
[1739367734236,1.5453275,94399.0,94398.0,4.90385384]
[1739367734657,1.5493275,94399.0,94398.0,4.81901933]
[1739367734861,1.56427517,94399.0,94398.0,4.73141509]
[1739367735494,1.56427517,94399.0,94398.0,4.65005634]
[1739367735709,1.56427517,94399.0,94398.0,4.58649534]
[1739367735893,1.56427517,94399.0,94398.0,4.56530834]
[1739367736332,1.56727517,94399.0,94398.0,4.56530834]
[1739367736539,1.56727517,94399.0,94398.0,4.36643268]
[1739367736747,1.40535917,94399.0,94398.0,3.81785868]
[1739367736956,1.40535917,94399.0,94398.0,3.76785868]
[1739367737381,1.27985917,94399.0,94398.0,3.76785868]
[1739367737594,4.92441731,94399.0,94398.0,3.76785868]
[1739367737799,4.78595831,94399.0,94398.0,3.76785868]
[1739367738189,4.57910031,94399.0,94398.0,3.63985868]
[1739367738741,4.63253559,94399.0,94398.0,3.63985868]
[1739367739175,1.08492359,94399.0,94398.0,3.63985868]
[1739367739378,1.82068159,94399.0,94398.0,3.63985868]
[1739367739536,0.96348619,94399.0,94398.0,3.63985868]
[1739367739758,0.93359299,94399.0,94398.0,3.68905868]
[1739367739967,0.39542504,94399.0,94398.0,3.68905868]
[1739367740322,0.003,94399.0,94398.0,3.68905868]
[1739367740525,0.4779889,94399.0,94398.0,3.68905868]
[1739367740739,0.37450034,94400.0,94398.0,3.63985868]
[1739367740938,0.003,94399.0,94398.0,3.63985868]
[1739367741140,0.4779074,94399.0,94398.0,3.63985868]
[1739367741347,0.37450034,94447.0,94399.0,0.1234]
[1739367741499,0.1884,94440.0,94400.0,0.00105915]
[1739367741701,0.0545,94458.0,94400.0,0.00105915]
[1739367741702,0.02997244,94439.0,94400.0,0.00105915]
[1739367741934,0.03103157,94453.0,94409.0,0.0846431]
[1739367742107,0.02997974,94452.0,94412.0,0.0488]
[1739367742310,0.37450034,94477.0,94414.0,0.0488]
[1739367742538,1.49887721,94460.0,94415.0,0.00105884]
[1739367742754,1.49887721,94460.0,94414.0,0.0458]
[1739367742755,0.09067573,94415.0,94414.0,0.0458]
[1739367742927,0.09067573,94415.0,94411.0,0.0792]
[1739367743126,0.56850873,94415.0,94411.0,0.0792]
[1739367743328,0.04067573,94415.0,94411.0,0.08025914]
[1739367743552,0.004283,94461.0,94411.0,0.08025914]
[1739367743727,0.465228,94460.0,94411.0,0.08025914]
[1739367743933,0.00105913,94459.0,94412.0,0.00105875]
[1739367744130,0.003,94415.0,94414.0,0.0846431]
[1739367744335,0.00022387,94461.0,94415.0,0.0808]
[1739367744634,0.51938813,94460.0,94415.0,0.0808]
[1739367744831,0.368701,94459.0,94419.0,0.0846431]
[1739367745000,0.420514,94460.0,94420.0,0.00105871]
[1739367745371,0.00022387,94461.0,94429.0,0.0846431]
[1739367745575,0.00022387,94461.0,94430.0,0.00105849]
[1739367745761,0.00022387,94461.0,94431.0,0.00105841]
[1739367745905,0.003,94460.0,94431.0,0.00105841]
[1739367746106,0.003,94460.0,94432.0,0.0456]
[1739367746316,0.00022387,94470.0,94433.0,0.00105848]
[1739367746520,0.00022387,94494.0,94451.0,0.0196]
[1739367746721,0.00022387,94494.0,94439.0,0.0846431]
[1739367746722,0.00022387,94494.0,94460.0,0.22522334]
[1739367746911,0.00022387,94494.0,94461.0,0.00105813]
[1739367747114,0.00022387,94494.0,94464.0,0.0816431]
[1739367747310,0.00022387,94494.0,94465.0,0.001058]
[1739367747510,0.00022387,94494.0,94466.0,0.0455]
[1739367747760,0.00022387,94502.0,94471.0,0.0455]
[1739367747937,0.00022387,94502.0,94480.0,0.22471395]
[1739367748139,0.00022387,94515.0,94481.0,0.00105784]
[1739367748343,0.00022408,94556.0,94490.0,0.30566012]
[1739367748538,0.00022408,94556.0,94492.0,0.0765]
[1739367748768,0.00022408,94556.0,94500.0,0.34624611]
[1739367748965,0.00022408,94556.0,94502.0,0.079]
[1739367749295,0.00011737,94565.0,94520.0,0.0846431]
[1739367749579,0.00025117,94565.0,94521.0,0.08606431]
[1739367750025,0.00025117,94565.0,94530.0,0.0846431]
[1739367750239,0.002,94556.0,94531.0,0.00105747]
[1739367750453,0.00025117,94565.0,94530.0,0.0846431]
[1739367750664,0.00025117,94565.0,94531.0,0.00105752]
[1739367750867,0.00225117,94565.0,94531.0,0.00105752]
[1739367751103,0.00225117,94565.0,94542.0,0.0846431]
[1739367751322,0.00225117,94565.0,94543.0,0.00105748]
[1739367751523,0.00225117,94565.0,94552.0,0.0846431]
[1739367751678,0.00225117,94565.0,94542.0,0.0846431]
[1739367752329,0.00225117,94565.0,94531.0,0.00105758]
[1739367752506,0.00225117,94565.0,94540.0,0.0846431]
[1739367752729,0.00025117,94565.0,94540.0,0.0846431]
[1739367752870,0.15,94563.0,94540.0,0.0846431]
[1739367753073,0.002,94556.0,94554.0,0.0846431]
[1739367753276,0.15,94561.0,94544.0,0.0846431]
[1739367753481,0.15,94561.0,94545.0,0.0010575]
[1739367753675,0.00105913,94560.0,94544.0,0.0846431]
[1739367753874,0.15,94558.0,94545.0,0.0846431]
[1739367754086,0.15,94558.0,94546.0,0.00105766]
[1739367754280,0.15,94558.0,94546.0,0.00105754]
[1739367754507,0.002,94556.0,94546.0,0.00105743]
[1739367754730,0.15,94558.0,94546.0,0.00105743]
[1739367754929,0.15,94558.0,94545.0,0.0846431]
[1739367755127,0.00025117,94565.0,94546.0,0.00105741]
[1739367755486,0.47020513,94564.0,94530.0,0.00022365]
[1739367755603,0.15011594,94562.0,94530.0,0.00022365]
[1739367755799,0.15,94560.0,94530.0,0.00022365]
[1739367756004,0.15,94558.0,94530.0,0.00022365]
[1739367756212,0.15,94556.0,94530.0,0.00022365]
[1739367756412,0.00011594,94562.0,94542.0,0.0846431]
[1739367756624,0.293461,94561.0,94532.0,0.06655744]
[1739367757019,0.15,94560.0,94532.0,0.06655744]
[1739367757165,0.97851,94560.0,94532.0,0.06655744]
[1739367757389,0.002,94556.0,94532.0,0.06655744]
[1739367757623,0.15,94554.0,94532.0,0.06655744]
[1739367757829,0.002,94556.0,94532.0,0.06655744]
[1739367758031,0.002,94556.0,94531.0,0.02320054]
[1739367758360,0.002,94556.0,94530.0,0.00022365]
[1739367758563,0.15,94554.0,94530.0,0.00022365]
[1739367758772,0.15,94552.0,94530.0,0.00022365]
[1739367758971,0.15,94550.0,94530.0,0.00022365]
[1739367759192,0.15,94548.0,94530.0,0.00022365]
[1739367760452,0.00011594,94562.0,94530.0,0.00022365]
[1739367760674,0.001,94548.0,94530.0,0.00022365]
[1739367761110,0.15,94560.0,94531.0,0.076]
[1739367761306,0.00011594,94562.0,94531.0,0.076]
[1739367761520,0.01932,94560.0,94531.0,0.076]
[1739367762541,0.01924,94559.0,94535.0,0.0846431]
[1739367762742,0.00022366,94582.0,94540.0,0.34624611]
[1739367763107,0.00022366,94582.0,94550.0,0.34624611]
[1739367763315,0.00022366,94582.0,94551.0,0.28364675]
[1739367763512,0.00022366,94582.0,94560.0,0.34524611]
[1739367763741,0.00022366,94582.0,94561.0,0.0307]
[1739367763936,0.00022366,94582.0,94551.0,0.18648055]
[1739367764143,0.00022366,94582.0,94560.0,0.34624611]
[1739367764345,0.00022366,94582.0,94560.0,0.38087072]
[1739367764554,0.0467,94678.0,94612.0,0.34624611]
[1739367764815,0.01928,94691.0,94650.0,0.34624611]
[1739367765465,0.00132031,94701.0,94650.0,0.34624611]
[1739367765466,0.00021119,94698.0,94650.0,0.34624611]
[1739367765652,0.00021119,94698.0,94640.0,0.34624611]
[1739367765864,0.01945119,94698.0,94640.0,0.34624611]
[1739367766082,0.00044596,94660.0,94647.0,0.0846431]
[1739367766310,0.00132,94697.0,94659.0,0.0846431]
[1739367766626,0.00021115,94718.0,94670.0,0.34624611]
[1739367766806,0.387151,94717.0,94670.0,0.34624611]
[1739367767010,0.00021115,94718.0,94670.0,0.34624611]
[1739367767011,0.01655535,94707.0,94670.0,0.34624611]
[1739367767206,0.838427,94706.0,94680.0,0.0846431]
[1739367767432,0.671488,94706.0,94680.0,0.0846431]
[1739367767637,0.237898,94706.0,94690.0,0.0846431]
[1739367767866,0.01668914,94707.0,94705.0,0.0846431]
[1739367768029,0.0478,94751.0,94690.0,0.1232862]
[1739367768350,0.0165463,94721.0,94691.0,0.01232862]
[1739367768556,0.0165463,94721.0,94690.0,0.12341999]